fUSD/lending_fUSD_20250513
["ID","MTS","AMOUNT","RATE_DAILY","PERIOD"]
[360924799,1747149373895,700.0,0.00027671,120]
[360924800,1747149374134,700.0,0.00027671,120]
[360924801,1747149374368,700.0,0.00027671,120]
[360924802,1747149374618,700.0,0.00027671,120]
[360924803,1747149374850,325.31389145,0.00027671,120]
[360924804,1747149474942,200.0,0.0002,30]
[360924805,1747149578757,500.0,0.0002,30]
[360924806,1747149579511,500.0,0.0002,30]
[360924807,1747149579602,500.0,0.0002,30]
[360924808,1747149579874,500.0,0.0002,30]
[360924809,1747149580126,500.0,0.0002,30]
[360924810,1747149580702,208.53244249,0.0002,30]
[360924811,1747149705537,962.19,8.219e-05,2]
[360924812,1747149847277,193.55,9.931e-05,2]
[360924813,1747149915496,1454.74753388,0.000121,30]
[360924814,1747149921179,189.28600869,9e-05,2]
[360924815,1747149926646,1054.54528179,0.00025,60]
[360924816,1747149942600,377.41317547,0.0002,30]
[360924817,1747149986965,336.03,9.903e-05,2]
[360924821,1747150003770,1538.75797133,0.0002,30]
[360924842,1747150090199,1533.00547915,0.00025,60]
[360924850,1747150117329,250.35622667,0.0002,30]
[360924851,1747150124050,1034.91753653,0.00015,30]
[360924852,1747150126043,226.59933834,0.00013699,30]
[360924857,1747150145901,603.6,0.00025,60]
[360924860,1747150187542,559.00708936,9.898e-05,2]
[360924861,1747150187566,440.99291064,9.898e-05,2]
[360924870,1747150232382,-200.0,9.96e-05,2]
[360924871,1747150232392,-1200.0,9.971e-05,2]
[360924872,1747150232402,-300.0,9.971e-05,2]
[360924873,1747150232411,-150.0,9.971e-05,2]
[360924874,1747150232421,-300.0,9.971e-05,2]
[360924875,1747150232431,-162.1,9.972e-05,2]
[360924881,1747150237268,-500.0,9.97e-05,2]
[360924882,1747150237279,-500.0,9.97e-05,2]
[360924883,1747150237289,-500.0,9.97e-05,2]
[360924884,1747150237299,-500.0,9.97e-05,2]
[360924885,1747150237308,-500.0,9.97e-05,2]
[360924886,1747150237317,-500.0,9.97e-05,2]
[360924887,1747150237326,-500.0,9.97e-05,2]
[360924888,1747150237335,-500.0,9.97e-05,2]
[360924889,1747150237344,-345.30410938,9.97e-05,2]
[360924890,1747150237355,-500.0,9.97e-05,2]
[360924891,1747150237364,-166.14,0.00010287,2]
[360924892,1747150237374,-962.19,0.00010473,2]
[360924893,1747150237383,-1112.38272876,0.00010575,2]
[360924894,1747150237392,-1112.38272876,0.0001063,2]
[360924895,1747150237402,-1112.38272876,0.00010658,2]
[360924896,1747150237411,-207.4,0.00010706,2]
[360924897,1747150237421,-9999.99,0.00010712,2]
[360924898,1747150237430,-299.99,0.00010712,2]
[360924899,1747150237439,-342.16,0.00010712,2]
[360924900,1747150237449,-31.70263834,0.00010712,2]
[360924901,1747150237462,-1080.68009042,0.00010712,2]
[360924902,1747150237472,-1112.38272876,0.00010767,2]
[360924903,1747150237481,-150.99,0.00010767,2]
[360924904,1747150237491,-1112.38272876,0.00010795,2]
[360924906,1747150237501,-1112.38272876,0.00010849,2]
[360924908,1747150237510,-156.2275566,0.00010858,2]
[360924910,1747150237519,-473.5401,0.00010858,2]
[360924913,1747150237528,-1112.38272876,0.00010877,2]
[360924914,1747150237538,-32999.999999,0.00010893,4]
[360924916,1747150237548,-2111.5790837,0.000109,2]
[360924918,1747150237559,-266.70051948,0.000109,2]
[360924920,1747150237569,-1112.38272876,0.00010932,2]
[360924922,1747150237578,-1800.3686809,0.00010944,2]
[360924924,1747150237588,-155.0,0.00010951,2]
[360924926,1747150237600,-668.65185757,0.00010951,2]
[360924928,1747150237610,-287.61899177,0.00010951,2]
[360924930,1747150237620,-6294.742385,0.00010958,2]
[360924932,1747150237631,-503.898652,0.00010958,2]
[360924933,1747150237641,-793.959132,0.00010958,2]
[360924934,1747150237651,-400.0,0.00010958,2]
[360924935,1747150237661,-1178.05,0.00010958,2]
[360924936,1747150237671,-400.0,0.00010958,2]
[360924937,1747150237680,-400.0,0.00010958,2]
[360924938,1747150237690,-400.0,0.00010958,2]
[360924939,1747150237700,-400.0,0.00010958,2]
[360924940,1747150237710,-1357.25,0.00010958,2]
[360924941,1747150237720,-400.0,0.00010958,2]
[360924942,1747150237729,-400.0,0.00010958,2]
[360924943,1747150237739,-400.0,0.00010958,2]
[360924944,1747150237749,-466.0963348,0.00010958,2]
[360924945,1747150237758,-400.0,0.00010958,2]
[360924946,1747150237768,-400.0,0.00010958,2]
[360924947,1747150237778,-400.0,0.00010958,2]
[360924948,1747150237787,-400.0,0.00010958,2]
[360924949,1747150237797,-544.32,0.00010958,2]
[360924950,1747150237807,-400.0,0.00010958,2]
[360924951,1747150237816,-400.0,0.00010958,2]
[360924952,1747150237826,-400.0,0.00010958,2]
[360924953,1747150237835,-400.0,0.00010958,2]
[360924954,1747150237844,-500.0,0.00010958,2]
[360924955,1747150237854,-479.91,0.00010958,2]
[360924956,1747150237863,-400.0,0.00010958,2]
[360924957,1747150237873,-400.0,0.00010958,2]
[360924958,1747150237882,-400.0,0.00010958,2]
[360924959,1747150237892,-250.0,0.00010958,2]
[360924960,1747150237901,-400.0,0.00010958,2]
[360924961,1747150237910,-1254.57,0.00010958,2]
[360924962,1747150237920,-400.0,0.00010958,2]
[360924963,1747150237929,-400.0,0.00010958,2]
[360924964,1747150237940,-400.0,0.00010958,2]
[360924965,1747150237952,-500.0,0.00010958,2]
[360924966,1747150237962,-702.91,0.00010958,2]
[360924967,1747150237972,-400.0,0.00010958,2]
[360924968,1747150237981,-400.0,0.00010958,2]
[360924970,1747150237991,-400.0,0.00010958,2]
[360924972,1747150238000,-484.4755416,0.00010958,2]
[360924973,1747150238009,-400.0,0.00010958,2]
[360924975,1747150238018,-169.140781,0.00010958,2]
[360924976,1747150238027,-421.780659,0.00010958,2]
[360924977,1747150238037,-400.0,0.00010958,2]
[360924979,1747150238046,-554.73,0.00010958,2]
[360924981,1747150238056,-400.0,0.00010958,2]
[360924982,1747150238065,-400.0,0.00010958,2]
[360924983,1747150238074,-400.0,0.00010958,2]
[360924984,1747150238084,-400.0,0.00010958,2]
[360924985,1747150238093,-400.0,0.00010958,2]
[360924986,1747150238109,-400.0,0.00010958,2]
[360924987,1747150238118,-1275.42,0.00010958,2]
[360924988,1747150238128,-400.0,0.00010958,2]
[360924989,1747150238138,-400.0,0.00010958,2]
[360924990,1747150238148,-231.96178946,0.00010958,2]
[360924991,1747150238157,-400.0,0.00010958,2]
[360924992,1747150238166,-400.0,0.00010958,2]
[360924993,1747150238175,-400.0,0.00010958,2]
[360924994,1747150238184,-400.73251567,0.00010958,2]
[360924995,1747150238193,-400.0,0.00010958,2]
[360924996,1747150238203,-509.81,0.00010958,2]
[360924997,1747150238212,-500.17,0.00010958,2]
[360924998,1747150238221,-400.0,0.00010958,2]
[360924999,1747150238230,-400.0,0.00010958,2]
[360925000,1747150238240,-400.0,0.00010958,2]
[360925001,1747150238249,-549.73,0.00010958,2]
[360925002,1747150238263,-306.47405163,0.00010958,2]
[360925003,1747150238278,-93.52594837,0.00010958,2]
[360925004,1747150238287,-453.73258865,0.00010958,2]
[360925005,1747150238316,-246.07741135,0.00010958,2]
[360925006,1747150238326,-400.0,0.00010958,2]
[360925007,1747150238335,-74.94135142,0.00010958,2]
[360925009,1747150238527,-325.05864858,0.00010958,2]
[360925010,1747150238537,-400.0,0.00010958,2]
[360925011,1747150238546,-400.0,0.00010958,2]
[360925012,1747150238555,-644.82,0.00010958,2]
[360925013,1747150238564,-400.0,0.00010958,2]
[360925014,1747150238573,-400.0,0.00010958,2]
[360925015,1747150238583,-400.0,0.00010958,2]
[360925016,1747150238592,-400.0,0.00010958,2]
[360925017,1747150238604,-400.0,0.00010958,2]
[360925018,1747150238614,-400.0,0.00010958,2]
[360925019,1747150238623,-407.51,0.00010958,2]
[360925020,1747150238632,-253.80000658,0.00010958,2]
[360925024,1747150240665,-296.82371763,0.00010958,2]
[360925025,1747150240677,-76.74627579,0.00010958,2]
[360925026,1747150240687,-451.04,0.00010958,2]
[360925027,1747150240697,-400.0,0.00010958,2]
[360925028,1747150240706,-287.19648658,0.00010958,2]
[360925029,1747150240718,-112.80351342,0.00010958,2]
[360925030,1747150240727,-400.0,0.00010958,2]
[360925031,1747150240737,-553.71648634,0.00010958,2]
[360925032,1747150240748,-818.22351366,0.00010958,2]
[360925033,1747150240758,-930.12,0.00010958,2]
[360925034,1747150240767,-481.5,0.00010958,2]
[360925035,1747150240777,-400.0,0.00010958,2]
[360925036,1747150240786,-941.84,0.00010958,2]
[360925037,1747150240795,-547.16404726,0.00010958,2]
[360925038,1747150240805,-400.0,0.00010958,2]
[360925039,1747150240814,-400.0,0.00010958,2]
[360925040,1747150240823,-400.0,0.00010958,2]
[360925041,1747150240833,-400.0,0.00010958,2]
[360925042,1747150240842,-400.0,0.00010958,2]
[360925043,1747150240854,-1253.30013142,0.00010958,2]
[360925044,1747150241266,-854.28986858,0.00010958,2]
[360925045,1747150241276,-400.0,0.00010958,2]
[360925046,1747150241285,-400.0,0.00010958,2]
[360925047,1747150241295,-418.52,0.00010958,2]
[360925048,1747150241305,-400.0,0.00010958,2]
[360925049,1747150241316,-400.0,0.00010958,2]
[360925050,1747150241326,-1270.72,0.00010958,2]
[360925051,1747150241338,-400.0,0.00010958,2]
[360925052,1747150241350,-1440.72,0.00010958,2]
[360925053,1747150241359,-400.0,0.00010958,2]
[360925054,1747150241369,-400.0,0.00010958,2]
[360925055,1747150241379,-400.0,0.00010958,2]
[360925056,1747150241389,-400.0,0.00010958,2]
[360925057,1747150241399,-400.0,0.00010958,2]
[360925058,1747150241409,-400.0,0.00010958,2]
[360925059,1747150241419,-400.0,0.00010958,2]
[360925060,1747150241428,-400.0,0.00010958,2]
[360925061,1747150241438,-400.0,0.00010958,2]
[360925062,1747150241448,-400.0,0.00010958,2]
[360925063,1747150241459,-400.0,0.00010958,2]
[360925064,1747150241469,-400.0,0.00010958,2]
[360925065,1747150241479,-400.0,0.00010958,2]
[360925066,1747150241489,-431.35102983,0.00010958,2]
[360925067,1747150241499,-400.0,0.00010958,2]
[360925068,1747150241508,-400.0,0.00010958,2]
[360925069,1747150241518,-400.0,0.00010958,2]
[360925070,1747150241527,-400.0,0.00010958,2]
[360925071,1747150241537,-1183.98,0.00010958,2]
[360925072,1747150241546,-400.0,0.00010958,2]
[360925073,1747150241556,-461.19861078,0.00010958,2]
[360925074,1747150241566,-717.76,0.00010958,2]
[360925075,1747150241575,-400.0,0.00010958,2]
[360925076,1747150241584,-400.0,0.00010958,2]
[360925077,1747150241594,-400.0,0.00010958,2]
[360925078,1747150241604,-400.0,0.00010958,2]
[360925079,1747150241613,-400.0,0.00010958,2]
[360925080,1747150241623,-400.0,0.00010958,2]
[360925081,1747150241633,-400.0,0.00010958,2]
[360925082,1747150241643,-400.0,0.00010958,2]
[360925083,1747150241652,-400.0,0.00010958,2]
[360925084,1747150241661,-273.13079164,0.00010958,2]
[360925085,1747150241671,-688.29993598,0.00010958,2]
[360925086,1747150241685,-285.84463971,0.00010958,2]
[360925087,1747150241696,-383.985,0.00010958,2]
[360925088,1747150241708,-802.48042431,0.00010958,2]
[360925089,1747150241717,-400.0,0.00010958,2]
[360925090,1747150241727,-1310.7,0.00010958,2]
[360925091,1747150241736,-400.0,0.00010958,2]
[360925092,1747150241745,-536.7719813,0.00010958,2]
[360925093,1747150241754,-400.0,0.00010958,2]
[360925094,1747150241763,-2285.54,0.00010958,2]
[360925095,1747150241773,-400.0,0.00010958,2]
[360925096,1747150241782,-346.38813261,0.00010958,2]
[360925097,1747150241791,-400.0,0.00010958,2]
[360925098,1747150241800,-400.0,0.00010958,2]
[360925099,1747150241809,-400.0,0.00010958,2]
[360925100,1747150241818,-541.83,0.00010958,2]
[360925101,1747150241828,-400.0,0.00010958,2]
[360925102,1747150241837,-973.89,0.00010958,2]
[360925103,1747150241847,-400.0,0.00010958,2]
[360925104,1747150241858,-418.69380868,0.00010958,2]
[360925105,1747150241867,-799.84,0.00010958,2]
[360925106,1747150241877,-1587.42,0.00010958,2]
[360925107,1747150241886,-400.0,0.00010958,2]
[360925108,1747150241896,-400.0,0.00010958,2]
[360925109,1747150241905,-400.0,0.00010958,2]
[360925110,1747150241915,-1586.22,0.00010958,2]
[360925111,1747150241925,-400.0,0.00010958,2]
[360925112,1747150241934,-415.82,0.00010958,2]
[360925113,1747150241944,-400.0,0.00010958,2]
[360925114,1747150241953,-400.0,0.00010958,2]
[360925115,1747150241963,-400.0,0.00010958,2]
[360925116,1747150241972,-415.23204008,0.00010958,2]
[360925117,1747150241981,-400.0,0.00010958,2]
[360925118,1747150241991,-400.0,0.00010958,2]
[360925119,1747150242000,-768.97,0.00010958,2]
[360925120,1747150242010,-400.0,0.00010958,2]
[360925121,1747150242019,-400.0,0.00010958,2]
[360925122,1747150242029,-400.15008665,0.00010958,2]
[360925123,1747150242038,-400.0,0.00010958,2]
[360925124,1747150242048,-400.0,0.00010958,2]
[360925125,1747150242057,-400.0,0.00010958,2]
[360925126,1747150242066,-400.0,0.00010958,2]
[360925127,1747150242075,-400.0,0.00010958,2]
[360925128,1747150242084,-400.0,0.00010958,2]
[360925129,1747150242093,-1892.65,0.00010958,2]
[360925130,1747150242103,-400.0,0.00010958,2]
[360925131,1747150242113,-400.0,0.00010958,2]
[360925132,1747150242122,-400.0,0.00010958,2]
[360925133,1747150242131,-400.0,0.00010958,2]
[360925134,1747150242141,-400.0,0.00010958,2]
[360925135,1747150242150,-422.09,0.00010958,2]
[360925136,1747150242159,-400.0,0.00010958,2]
[360925137,1747150242168,-954.32,0.00010958,2]
[360925138,1747150242177,-400.0,0.00010958,2]
[360925139,1747150242186,-400.0,0.00010958,2]
[360925140,1747150242196,-400.0,0.00010958,2]
[360925141,1747150242205,-400.0,0.00010958,2]
[360925142,1747150242216,-510.56,0.00010958,2]
[360925143,1747150242225,-1632.96,0.00010958,2]
[360925144,1747150242234,-400.0,0.00010958,2]
[360925145,1747150242244,-400.0,0.00010958,2]
[360925146,1747150242256,-400.0,0.00010958,2]
[360925147,1747150242267,-413.0,0.00010958,2]
[360925148,1747150242276,-400.0,0.00010958,2]
[360925149,1747150242286,-400.0,0.00010958,2]
[360925150,1747150242295,-400.0,0.00010958,2]
[360925151,1747150242306,-1446.39,0.00010958,2]
[360925152,1747150242315,-400.0,0.00010958,2]
[360925153,1747150242325,-400.0,0.00010958,2]
[360925154,1747150242336,-512.17,0.00010958,2]
[360925155,1747150242346,-400.0,0.00010958,2]
[360925156,1747150242356,-400.0,0.00010958,2]
[360925157,1747150242365,-493.27,0.00010958,2]
[360925158,1747150242375,-507.71,0.00010958,2]
[360925159,1747150242385,-400.0,0.00010958,2]
[360925160,1747150242394,-400.0,0.00010958,2]
[360925161,1747150242404,-400.0,0.00010958,2]
[360925162,1747150242415,-400.0,0.00010958,2]
[360925163,1747150242425,-400.0,0.00010958,2]
[360925164,1747150242435,-400.0,0.00010958,2]
[360925165,1747150242444,-400.0,0.00010958,2]
[360925166,1747150242455,-400.0,0.00010958,2]
[360925167,1747150242465,-400.0,0.00010958,2]
[360925168,1747150242474,-400.0,0.00010958,2]
[360925169,1747150242483,-400.0,0.00010958,2]
[360925170,1747150242493,-608.04,0.00010958,2]
[360925171,1747150242503,-400.0,0.00010958,2]
[360925172,1747150242512,-400.0,0.00010958,2]
[360925173,1747150242522,-1527.36,0.00010958,2]
[360925174,1747150242531,-430.52,0.00010958,2]
[360925175,1747150242540,-400.0,0.00010958,2]
[360925176,1747150242549,-400.0,0.00010958,2]
[360925177,1747150242559,-402.71,0.00010958,2]
[360925178,1747150242569,-400.0,0.00010958,2]
[360925179,1747150242578,-400.0,0.00010958,2]
[360925180,1747150242587,-400.0,0.00010958,2]
[360925181,1747150242597,-1564.86,0.00010958,2]
[360925182,1747150242608,-400.0,0.00010958,2]
[360925183,1747150242617,-400.0,0.00010958,2]
[360925184,1747150242626,-400.0,0.00010958,2]
[360925185,1747150242636,-773.67,0.00010958,2]
[360925186,1747150242645,-400.0,0.00010958,2]
[360925187,1747150242655,-879.22,0.00010958,2]
[360925188,1747150242664,-400.0,0.00010958,2]
[360925189,1747150242674,-400.0,0.00010958,2]
[360925190,1747150242684,-400.0,0.00010958,2]
[360925191,1747150242694,-699.33,0.00010958,2]
[360925192,1747150242704,-400.0,0.00010958,2]
[360925193,1747150242715,-758.66,0.00010958,2]
[360925194,1747150242724,-400.0,0.00010958,2]
[360925195,1747150242734,-400.0,0.00010958,2]
[360925196,1747150242743,-400.0,0.00010958,2]
[360925197,1747150242752,-400.0,0.00010958,2]
[360925198,1747150242762,-400.0,0.00010958,2]
[360925199,1747150242772,-400.0,0.00010958,2]
[360925200,1747150242781,-400.0,0.00010958,2]
[360925201,1747150242791,-397.03311931,0.00010958,2]
[360925202,1747150242800,-707.1,0.00010958,2]
[360925203,1747150242809,-1445.4,0.00010958,2]
[360925204,1747150242819,-400.0,0.00010958,2]
[360925205,1747150242828,-400.0,0.00010958,2]
[360925206,1747150242837,-416.14,0.00010958,2]
[360925207,1747150242847,-400.0,0.00010958,2]
[360925208,1747150242860,-400.0,0.00010958,2]
[360925209,1747150242869,-400.0,0.00010958,2]
[360925210,1747150242879,-585.48,0.00010958,2]
[360925211,1747150242888,-159.76915176,0.00010958,2]
[360925212,1747150242897,-400.0,0.00010958,2]
[360925213,1747150242907,-844.83,0.00010958,2]
[360925214,1747150242916,-400.0,0.00010958,2]
[360925215,1747150242925,-400.0,0.00010958,2]
[360925216,1747150242934,-400.0,0.00010958,2]
[360925217,1747150242944,-597.77,0.00010958,2]
[360925218,1747150242953,-500.0,0.00010958,2]
[360925219,1747150242962,-500.0,0.00010958,2]
[360925220,1747150242971,-400.0,0.00010958,2]
[360925221,1747150242980,-400.0,0.00010958,2]
[360925222,1747150242989,-675.09,0.00010958,2]
[360925223,1747150242999,-1098.14,0.00010958,2]
[360925224,1747150243008,-294.69613091,0.00010958,2]
[360925225,1747150243017,-400.0,0.00010958,2]
[360925226,1747150243027,-400.0,0.00010958,2]
[360925228,1747150243037,-400.0,0.00010958,2]
[360925229,1747150243047,-400.0,0.00010958,2]
[360925231,1747150243056,-400.0,0.00010958,2]
[360925232,1747150243066,-400.0,0.00010958,2]
[360925234,1747150243075,-400.0,0.00010958,2]
[360925236,1747150243086,-400.0,0.00010958,2]
[360925238,1747150243096,-502.03,0.00010958,2]
[360925239,1747150243107,-400.0,0.00010958,2]
[360925240,1747150243116,-401.33098363,0.00010958,2]
[360925241,1747150243126,-527.35,0.00010958,2]
[360925242,1747150243135,-274.20711542,0.00010958,2]
[360925243,1747150243144,-400.0,0.00010958,2]
[360925245,1747150243154,-403.53773939,0.00010958,2]
[360925247,1747150243163,-543.43,0.00010958,2]
[360925249,1747150243172,-400.0,0.00010958,2]
[360925250,1747150243182,-450.55,0.00010958,2]
[360925251,1747150243191,-411.98,0.00010958,2]
[360925252,1747150243201,-635.16,0.00010958,2]
[360925253,1747150243210,-623.94,0.00010958,2]
[360925255,1747150243219,-400.0,0.00010958,2]
[360925257,1747150243229,-553.2,0.00010958,2]
[360925258,1747150243239,-400.0,0.00010958,2]
[360925259,1747150243249,-400.0,0.00010958,2]
[360925260,1747150243261,-400.0,0.00010958,2]
[360925261,1747150243271,-400.0,0.00010958,2]
[360925262,1747150243281,-400.0,0.00010958,2]
[360925263,1747150243291,-400.0,0.00010958,2]
[360925264,1747150243301,-400.0,0.00010958,2]
[360925265,1747150243310,-400.0,0.00010958,2]
[360925266,1747150243321,-400.0,0.00010958,2]
[360925267,1747150243331,-496.26035296,0.00010958,2]
[360925268,1747150243341,-400.0,0.00010958,2]
[360925269,1747150243350,-400.0,0.00010958,2]
[360925270,1747150243361,-400.0,0.00010958,2]
[360925271,1747150243371,-2494.88,0.00010958,2]
[360925272,1747150243380,-605.95,0.00010958,2]
[360925273,1747150243390,-262.7676841,0.00010958,2]
[360925274,1747150243399,-400.0,0.00010958,2]
[360925275,1747150243408,-400.0,0.00010958,2]
[360925276,1747150243418,-400.0,0.00010958,2]
[360925277,1747150243427,-400.0,0.00010958,2]
[360925278,1747150243437,-400.0,0.00010958,2]
[360925279,1747150243447,-2874.81,0.00010958,2]
[360925280,1747150243456,-400.0,0.00010958,2]
[360925281,1747150243466,-990.45,0.00010958,2]
[360925282,1747150243476,-924.29,0.00010958,2]
[360925283,1747150243486,-400.0,0.00010958,2]
[360925284,1747150243495,-348.73377859,0.00010958,2]
[360925285,1747150243505,-594.39,0.00010958,2]
[360925286,1747150243514,-3466.68,0.00010958,2]
[360925287,1747150243524,-2181.25,0.00010958,2]
[360925288,1747150243534,-1940.54,0.00010958,2]
[360925289,1747150243544,-400.0,0.00010958,2]
[360925290,1747150243553,-400.0,0.00010958,2]
[360925291,1747150243563,-400.0,0.00010958,2]
[360925292,1747150243572,-400.0,0.00010958,2]
[360925293,1747150243582,-956.57,0.00010958,2]
[360925294,1747150243591,-400.0,0.00010958,2]
[360925295,1747150243601,-506.6,0.00010958,2]
[360925296,1747150243612,-2384.21,0.00010958,2]
[360925297,1747150243622,-5512.84,0.00010958,2]
[360925298,1747150243631,-400.0,0.00010958,2]
[360925299,1747150243641,-400.0,0.00010958,2]
[360925300,1747150243650,-655.07,0.00010958,2]
[360925301,1747150243660,-235.44853611,0.00010958,2]
[360925302,1747150243669,-441.93,0.00010958,2]
[360925303,1747150243679,-1426.68,0.00010958,2]
[360925304,1747150243689,-1800.62,0.00010958,2]
[360925305,1747150243698,-451.16,0.00010958,2]
[360925306,1747150243709,-400.0,0.00010958,2]
[360925307,1747150243719,-400.0,0.00010958,2]
[360925308,1747150243729,-400.0,0.00010958,2]
[360925309,1747150243738,-248.80061005,0.00010958,2]
[360925310,1747150243748,-504.06,0.00010958,2]
[360925311,1747150243757,-526.05,0.00010958,2]
[360925312,1747150243767,-400.0,0.00010958,2]
[360925313,1747150243776,-400.0,0.00010958,2]
[360925314,1747150243786,-2629.91,0.00010958,2]
[360925315,1747150243796,-400.0,0.00010958,2]
[360925316,1747150243805,-400.0,0.00010958,2]
[360925317,1747150243815,-400.0,0.00010958,2]
[360925318,1747150243825,-4064.68,0.00010958,2]
[360925319,1747150243835,-2461.27,0.00010958,2]
[360925320,1747150243844,-400.0,0.00010958,2]
[360925321,1747150243854,-485.51,0.00010958,2]
[360925322,1747150243864,-802.02,0.00010958,2]
[360925323,1747150243874,-400.0,0.00010958,2]
[360925324,1747150243883,-400.0,0.00010958,2]
[360925325,1747150243893,-400.0,0.00010958,2]
[360925326,1747150243903,-460.25380573,0.00010958,2]
[360925327,1747150243913,-400.0,0.00010958,2]
[360925328,1747150243923,-2472.01,0.00010958,2]
[360925329,1747150243932,-470.38,0.00010958,2]
[360925330,1747150243942,-400.0,0.00010958,2]
[360925331,1747150243952,-400.0,0.00010958,2]
[360925332,1747150243962,-400.0,0.00010958,2]
[360925333,1747150243971,-400.0,0.00010958,2]
[360925334,1747150243981,-400.0,0.00010958,2]
[360925335,1747150243990,-544.63,0.00010958,2]
[360925336,1747150244000,-412.28,0.00010958,2]
[360925337,1747150244010,-400.0,0.00010958,2]
[360925338,1747150244020,-400.0,0.00010958,2]
[360925339,1747150244030,-1317.36,0.00010958,2]
[360925340,1747150244040,-400.0,0.00010958,2]
[360925341,1747150244051,-1518.31,0.00010958,2]
[360925342,1747150244061,-408.95227207,0.00010958,2]
[360925343,1747150244073,-150.0,0.00010958,2]
[360925344,1747150244082,-400.0,0.00010958,2]
[360925345,1747150244093,-509.32,0.00010958,2]
[360925346,1747150244103,-400.0,0.00010958,2]
[360925347,1747150244112,-1155.93,0.00010958,2]
[360925348,1747150244122,-3149.45,0.00010958,2]
[360925349,1747150244132,-400.0,0.00010958,2]
[360925350,1747150244142,-325.07424662,0.00010958,2]
[360925351,1747150244151,-607.7,0.00010958,2]
[360925352,1747150244162,-450.0,0.00010958,2]
[360925353,1747150244172,-400.0,0.00010958,2]
[360925354,1747150244183,-854.86,0.00010958,2]
[360925355,1747150244193,-400.0,0.00010958,2]
[360925356,1747150244203,-482.74,0.00010958,2]
[360925357,1747150244213,-722.52,0.00010958,2]
[360925358,1747150244222,-400.0,0.00010958,2]
[360925359,1747150244231,-400.0,0.00010958,2]
[360925360,1747150244241,-400.0,0.00010958,2]
[360925361,1747150244251,-1297.27,0.00010958,2]
[360925362,1747150244263,-713.61,0.00010958,2]
[360925363,1747150244273,-400.0,0.00010958,2]
[360925364,1747150244283,-400.0,0.00010958,2]
[360925365,1747150244292,-841.66,0.00010958,2]
[360925366,1747150244302,-400.0,0.00010958,2]
[360925367,1747150244312,-2169.48,0.00010958,2]
[360925368,1747150244321,-452.44,0.00010958,2]
[360925369,1747150244333,-949.71,0.00010958,2]
[360925370,1747150244343,-400.0,0.00010958,2]
[360925371,1747150244353,-1113.32,0.00010958,2]
[360925372,1747150244363,-400.0,0.00010958,2]
[360925373,1747150244372,-879.37,0.00010958,2]
[360925374,1747150244382,-400.0,0.00010958,2]
[360925375,1747150244391,-785.08,0.00010958,2]
[360925376,1747150244401,-1368.74,0.00010958,2]
[360925377,1747150244410,-1976.12,0.00010958,2]
[360925378,1747150244420,-400.0,0.00010958,2]
[360925379,1747150244430,-626.49,0.00010958,2]
[360925380,1747150244440,-400.0,0.00010958,2]